Workbook

Sheet MATRIZ TRANSPORTE FÁBRICA PÁTIO
A2: SISTEMA DE MENOR DISTÂNCIA ENTRE OS MUNICÍPIOS DO ESTADO DA BAHIA-2ªSR | B2: QUANTIDADE CISTERNAS | C2: DISTÂNCIA MÉDIA | D2: Município - Centro de Distribuição | E2: Município - A | F2: Município - B | G2: Município - C | H2: Município - D | I2: Município - E | J2: Município - F | K2: Município - G | L2: Município - H | M2: Município - I | N2: Município - J | O2: Município - K | P2: Município - L | Q2: Município - M | R2: Município - N | S2: Município - O | T2: Município - P | U2: Município - Q | V2: Município - R | W2: Município - S | X2: Município - T | Y2: Município - U | Z2: Município - V | AA2: Município - X | AB2: MUN_RESERVA
A3: Município - Centro de Distribuição | B3: 45 | C3: =AVERAGE(D3:AB3) -> 137.9916667 | D3: 0 | E3: 164 | F3: 136 | G3: 227 | H3: 142 | I3: 118 | J3: 156 | K3: 143 | L3: 249 | M3: 231 | N3: 139 | O3: 97.4 | P3: 140 | Q3: 243 | R3: 154 | S3: 156 | T3: 73.2 | U3: 66.1 | V3: 92.8 | W3: 95.5 | X3: 88.9 | Y3: 59.9 | Z3: 104 | AA3: 236
A4: Município - A | B4: 22 | C4: 224.2333333 | D4: 164 | E4: 0 | F4: 296 | G4: 230 | H4: 97.4 | I4: 278 | J4: 316 | K4: 303 | L4: 378 | M4: 302 | N4: 237 | O4: 67.4 | P4: 300 | Q4: 79.3 | R4: 239 | S4: 159 | T4: 231 | U4: 98.5 | V4: 253 | W4: 256 | X4: 249 | Y4: 220 | Z4: 264 | AA4: 364
A5: Município - B | B5: 66 | C5: 168.0833333 | D5: 136 | E5: 296 | F5: 0 | G5: 241 | H5: 274 | I5: 96.9 | J5: 193 | K5: 177 | L5: 69.3 | M5: 268 | N5: 112 | O5: 229 | P5: 177 | Q5: 278 | R5: 262 | S5: 196 | T5: 178 | U5: 198 | V5: 122 | W5: 75.6 | X5: 127 | Y5: 168 | Z5: 36.2 | AA5: 124
A6: Município - C | B6: 33 | C6: 285.0958333 | D6: 227 | E6: 230 | F6: 241 | G6: 0 | H6: 327 | I6: 326 | J6: 422 | K6: 406 | L6: 270 | M6: 497 | N6: 129 | O6: 297 | P6: 406 | Q6: 159 | R6: 469 | S6: 77.3 | T6: 154 | U6: 328 | V6: 351 | W6: 305 | X6: 356 | Y6: 344 | Z6: 265 | AA6: 256
A7: Município - D | B7: 47 | C7: 221.0458333 | D7: 142 | E7: 97.4 | F7: 274 | G7: 327 | H7: 0 | I7: 256 | J7: 295 | K7: 282 | L7: 388 | M7: 211 | N7: 334 | O7: 45.8 | P7: 279 | Q7: 176 | R7: 148 | S7: 256 | T7: 210 | U7: 76.9 | V7: 231 | W7: 234 | X7: 227 | Y7: 198 | Z7: 243 | AA7: 374
A8: Município - E | B8: 44 | C8: 188.325 | D8: 118 | E8: 278 | F8: 96.9 | G8: 326 | H8: 256 | I8: 0 | J8: 117 | K8: 101 | L8: 158 | M8: 191 | N8: 197 | O8: 211 | P8: 100 | Q8: 363 | R8: 231 | S8: 282 | T8: 191 | U8: 180 | V8: 45.8 | W8: 23.8 | X8: 50.3 | Y8: 136 | Z8: 657 | AA8: 210
A9: Município - F | B9: 49 | C9: 197.9333333 | D9: 156 | E9: 316 | F9: 193 | G9: 422 | H9: 295 | I9: 117 | J9: 0 | K9: 76.7 | L9: 254 | M9: 75.3 | N9: 294 | O9: 250 | P9: 32 | Q9: 396 | R9: 141 | S9: 378 | T9: 230 | U9: 219 | V9: 71.2 | W9: 123 | X9: 68.2 | Y9: 175 | Z9: 162 | AA9: 306
A10: Município - G | B10: 38 | C10: 191.9125 | D10: 143 | E10: 303 | F10: 177 | G10: 406 | H10: 282 | I10: 101 | J10: 76.7 | K10: 0 | L10: 159 | M10: 151 | N10: 277 | O10: 237 | P10: 53.7 | Q10: 383 | R10: 256 | S10: 362 | T10: 217 | U10: 206 | V10: 55.1 | W10: 107 | X10: 55.4 | Y10: 162 | Z10: 146 | AA10: 290
A11: Município - H | B11: 37 | C11: 225.6791667 | D11: 249 | E11: 378 | F11: 69.3 | G11: 270 | H11: 388 | I11: 158 | J11: 254 | K11: 159 | L11: 0 | M11: 328 | N11: 141 | O11: 343 | P11: 238 | Q11: 307 | R11: 376 | S11: 225 | T11: 207 | U11: 312 | V11: 183 | W11: 136 | X11: 188 | Y11: 281 | Z11: 162 | AA11: 64
A12: Município - I | B12: 12 | C12: 239.6666667 | D12: 231 | E12: 302 | F12: 268 | G12: 497 | H12: 211 | I12: 191 | J12: 75.3 | K12: 151 | L12: 328 | M12: 0 | N12: 368 | O12: 251 | P12: 106 | Q12: 381 | R12: 65.7 | S12: 461 | T12: 304 | U12: 293 | V12: 146 | W12: 198 | X12: 143 | Y12: 165 | Z12: 236 | AA12: 380
A13: Município - J | B13: 20 | C13: 194.3916667 | D13: 139 | E13: 237 | F13: 112 | G13: 129 | H13: 334 | I13: 197 | J13: 294 | K13: 277 | L13: 141 | M13: 368 | N13: 0 | O13: 231 | P13: 277 | Q13: 166 | R13: 309 | S13: 84.2 | T13: 66.2 | U13: 199 | V13: 223 | W13: 176 | X13: 227 | Y13: 215 | Z13: 137 | AA13: 127
A14: Município - K | B14: 21 | C14: 187.0291667 | D14: 97.4 | E14: 67.4 | F14: 229 | G14: 297 | H14: 45.8 | I14: 211 | J14: 250 | K14: 237 | L14: 343 | M14: 251 | N14: 231 | O14: 0 | P14: 234 | Q14: 147 | R14: 188 | S14: 226 | T14: 165 | U14: 32.1 | V14: 186 | W14: 189 | X14: 182 | Y14: 153 | Z14: 198 | AA14: 329
A15: Município - L | B15: 10 | C15: 186.0375 | D15: 140 | E15: 300 | F15: 177 | G15: 406 | H15: 279 | I15: 100 | J15: 32 | K15: 53.7 | L15: 238 | M15: 106 | N15: 277 | O15: 234 | P15: 0 | Q15: 380 | R15: 154 | S15: 362 | T15: 214 | U15: 203 | V15: 55.1 | W15: 107 | X15: 52.1 | Y15: 159 | Z15: 146 | AA15: 290
A16: Município - M | B16: 242 | C16: 253.65 | D16: 243 | E16: 79.3 | F16: 278 | G16: 159 | H16: 176 | I16: 363 | J16: 396 | K16: 383 | L16: 307 | M16: 381 | N16: 166 | O16: 147 | P16: 380 | Q16: 0 | R16: 318 | S16: 88.3 | T16: 148 | U16: 178 | V16: 332 | W16: 342 | X16: 328 | Y16: 299 | Z16: 303 | AA16: 293
A17: Município - N | B17: 23 | C17: 227.1958333 | D17: 154 | E17: 239 | F17: 262 | G17: 469 | H17: 148 | I17: 231 | J17: 141 | K17: 256 | L17: 376 | M17: 65.7 | N17: 309 | O17: 188 | P17: 154 | Q17: 318 | R17: 0 | S17: 398 | T17: 228 | U17: 189 | V17: 206 | W17: 215 | X17: 202 | Y17: 111 | Z17: 231 | AA17: 362
A18: Município - O | B18: 58 | C18: 232.3875 | D18: 156 | E18: 159 | F18: 196 | G18: 77.3 | H18: 256 | I18: 282 | J18: 378 | K18: 362 | L18: 225 | M18: 461 | N18: 84.2 | O18: 226 | P18: 362 | Q18: 88.3 | R18: 398 | S18: 0 | T18: 83.5 | U18: 257 | V18: 307 | W18: 260 | X18: 311 | Y18: 216 | Z18: 221 | AA18: 211
A19: Município - P | B19: 171 | C19: 169.1625 | D19: 73.2 | E19: 231 | F19: 178 | G19: 154 | H19: 210 | I19: 191 | J19: 230 | K19: 217 | L19: 207 | M19: 304 | N19: 66.2 | O19: 165 | P19: 214 | Q19: 148 | R19: 228 | S19: 83.5 | T19: 0 | U19: 134 | V19: 166 | W19: 169 | X19: 162 | Y19: 133 | Z19: 203 | AA19: 193
A20: Município - Q | B20: 143 | C20: 175.8166667 | D20: 66.1 | E20: 98.5 | F20: 198 | G20: 328 | H20: 76.9 | I20: 180 | J20: 219 | K20: 206 | L20: 312 | M20: 293 | N20: 199 | O20: 32.1 | P20: 203 | Q20: 178 | R20: 189 | S20: 257 | T20: 134 | U20: 0 | V20: 155 | W20: 158 | X20: 151 | Y20: 122 | Z20: 166 | AA20: 298
A21: Município - R | B21: 40 | C21: 153.1666667 | D21: 92.8 | E21: 253 | F21: 122 | G21: 351 | H21: 231 | I21: 45.8 | J21: 71.2 | K21: 55.1 | L21: 183 | M21: 146 | N21: 223 | O21: 186 | P21: 55.1 | Q21: 332 | R21: 206 | S21: 307 | T21: 166 | U21: 155 | V21: 0 | W21: 53 | X21: 4.5 | Y21: 111 | Z21: 91.5 | AA21: 235
A22: Município - S | B22: 84 | C22: 151.2 | D22: 95.5 | E22: 256 | F22: 75.6 | G22: 305 | H22: 234 | I22: 23.8 | J22: 123 | K22: 107 | L22: 136 | M22: 198 | N22: 176 | O22: 189 | P22: 107 | Q22: 342 | R22: 215 | S22: 260 | T22: 169 | U22: 158 | V22: 53 | W22: 0 | X22: 56.9 | Y22: 121 | Z22: 41 | AA22: 187
A23: Município - T | B23: 9 | C23: 152.95 | D23: 88.9 | E23: 249 | F23: 127 | G23: 356 | H23: 227 | I23: 50.3 | J23: 68.2 | K23: 55.4 | L23: 188 | M23: 143 | N23: 227 | O23: 182 | P23: 52.1 | Q23: 328 | R23: 202 | S23: 311 | T23: 162 | U23: 151 | V23: 4.5 | W23: 56.9 | X23: 0 | Y23: 107 | Z23: 95.5 | AA23: 239
A24: Município - U | B24: 81 | C24: 169.1625 | D24: 59.9 | E24: 220 | F24: 168 | G24: 344 | H24: 198 | I24: 136 | J24: 175 | K24: 162 | L24: 281 | M24: 165 | N24: 215 | O24: 153 | P24: 159 | Q24: 299 | R24: 111 | S24: 216 | T24: 133 | U24: 122 | V24: 111 | W24: 121 | X24: 107 | Y24: 0 | Z24: 136 | AA24: 268
A25: Município - V | B25: 236 | C25: 183.05 | D25: 104 | E25: 264 | F25: 36.2 | G25: 265 | H25: 243 | I25: 657 | J25: 162 | K25: 146 | L25: 162 | M25: 236 | N25: 137 | O25: 198 | P25: 146 | Q25: 303 | R25: 231 | S25: 221 | T25: 203 | U25: 166 | V25: 91.5 | W25: 41 | X25: 95.5 | Y25: 136 | Z25: 0 | AA25: 149
A26: Município - X | B26: 59 | C26: 241.0416667 | D26: 236 | E26: 364 | F26: 124 | G26: 256 | H26: 374 | I26: 210 | J26: 306 | K26: 290 | L26: 64 | M26: 380 | N26: 127 | O26: 329 | P26: 290 | Q26: 293 | R26: 362 | S26: 211 | T26: 193 | U26: 298 | V26: 235 | W26: 187 | X26: 239 | Y26: 268 | Z26: 149 | AA26: 0
A27: MUN_RESERVA
A29: TOTAL DE CISTERNAS | B29: =SUM(B3:B28) -> 1590
A31: 1 | B31: =A31+1 -> 2 | C31: =B31+1 -> 3 | D31: 4 | E31: 5 | F31: 6 | G31: 7 | H31: 8 | I31: 9 | J31: 10 | K31: 11 | L31: 12 | M31: 13 | N31: 14 | O31: 15 | P31: 16 | Q31: 17 | R31: 18 | S31: 19 | T31: 20 | U31: 21 | V31: 22 | W31: 23 | X31: 24 | Y31: 25 | Z31: 26 | AA31: 27 | AB31: 28
A32: DISTÂNCIA ACUMULADA TRANSPORTE RODOVIÁRIO (CAPACIDADE DE CARGA 05 CISTERNAS / CAMINHÃO) | B32: QUANTIDADE CISTERNAS | C32: FATOR TRANSPORTE RODOVIÁRIO | D32: =D2 -> Município - Centro de Distribuição | E32: Município - A | F32: Município - B | G32: Município - C | H32: Município - D | I32: Município - E | J32: Município - F | K32: Município - G | L32: Município - H | M32: Município - I | N32: Município - J | O32: Município - K | P32: Município - L | Q32: Município - M | R32: Município - N | S32: Município - O | T32: Município - P | U32: Município - Q | V32: Município - R | W32: Município - S | X32: Município - T | Y32: Município - U | Z32: Município - V | AA32: Município - X | AB32: MUN_RESERVA
A33: =A3 -> Município - Centro de Distribuição | B33: 45 | C33: =HLOOKUP($A33,$D$32:$AB$59,28,FALSE) -> 43920.9 | D33: =ROUNDUP($B33/5,0)*D3 -> 0 | E33: 1476 | F33: 1224 | G33: 2043 | H33: 1278 | I33: 1062 | J33: 1404 | K33: 1287 | L33: 2241 | M33: 2079 | N33: 1251 | O33: 876.6 | P33: 1260 | Q33: 2187 | R33: 1386 | S33: 1404 | T33: 658.8 | U33: 594.9 | V33: 835.2 | W33: 859.5 | X33: 800.1 | Y33: 539.1 | Z33: 936 | AA33: 2124 | AB33: 0
A34: Município - A | B34: 22 | C34: =HLOOKUP($A34,$D$32:$AB$59,28,FALSE) -> 67689.2 | D34: =ROUNDUP($B34/5,0)*D4 -> 820 | E34: 0 | F34: 1480 | G34: 1150 | H34: 487 | I34: 1390 | J34: 1580 | K34: 1515 | L34: 1890 | M34: 1510 | N34: 1185 | O34: 337 | P34: 1500 | Q34: 396.5 | R34: 1195 | S34: 795 | T34: 1155 | U34: 492.5 | V34: 1265 | W34: 1280 | X34: 1245 | Y34: 1100 | Z34: 1320 | AA34: 1820 | AB34: 0
A35: Município - B | B35: 66 | C35: 52507.3 | D35: =ROUNDUP($B35/5,0)*D5 -> 1904 | E35: 4144 | F35: 0 | G35: 3374 | H35: 3836 | I35: 1356.6 | J35: 2702 | K35: 2478 | L35: 970.2 | M35: 3752 | N35: 1568 | O35: 3206 | P35: 2478 | Q35: 3892 | R35: 3668 | S35: 2744 | T35: 2492 | U35: 2772 | V35: 1708 | W35: 1058.4 | X35: 1778 | Y35: 2352 | Z35: 506.8 | AA35: 1736 | AB35: 0
A36: Município - C | B36: 33 | C36: 83013.6 | D36: =ROUNDUP($B36/5,0)*D6 -> 1589 | E36: 1610 | F36: 1687 | G36: 0 | H36: 2289 | I36: 2282 | J36: 2954 | K36: 2842 | L36: 1890 | M36: 3479 | N36: 903 | O36: 2079 | P36: 2842 | Q36: 1113 | R36: 3283 | S36: 541.1 | T36: 1078 | U36: 2296 | V36: 2457 | W36: 2135 | X36: 2492 | Y36: 2408 | Z36: 1855 | AA36: 1792 | AB36: 0
A37: Município - D | B37: 47 | C37: 69074.1 | D37: =ROUNDUP($B37/5,0)*D7 -> 1420 | E37: 974 | F37: 2740 | G37: 3270 | H37: 0 | I37: 2560 | J37: 2950 | K37: 2820 | L37: 3880 | M37: 2110 | N37: 3340 | O37: 458 | P37: 2790 | Q37: 1760 | R37: 1480 | S37: 2560 | T37: 2100 | U37: 769 | V37: 2310 | W37: 2340 | X37: 2270 | Y37: 1980 | Z37: 2430 | AA37: 3740 | AB37: 0
A38: Município - E | B38: 44 | C38: 85979.2 | D38: =ROUNDUP($B38/5,0)*D8 -> 1062 | E38: 2502 | F38: 872.1 | G38: 2934 | H38: 2304 | I38: 0 | J38: 1053 | K38: 909 | L38: 1422 | M38: 1719 | N38: 1773 | O38: 1899 | P38: 900 | Q38: 3267 | R38: 2079 | S38: 2538 | T38: 1719 | U38: 1620 | V38: 412.2 | W38: 214.2 | X38: 452.7 | Y38: 1224 | Z38: 5913 | AA38: 1890 | AB38: 0
A39: Município - F | B39: 49 | C39: 74270.5 | D39: =ROUNDUP($B39/5,0)*D9 -> 1560 | E39: 3160 | F39: 1930 | G39: 4220 | H39: 2950 | I39: 1170 | J39: 0 | K39: 767 | L39: 2540 | M39: 753 | N39: 2940 | O39: 2500 | P39: 320 | Q39: 3960 | R39: 1410 | S39: 3780 | T39: 2300 | U39: 2190 | V39: 712 | W39: 1230 | X39: 682 | Y39: 1750 | Z39: 1620 | AA39: 3060 | AB39: 0
A40: Município - G | B40: 38 | C40: 70316 | D40: =ROUNDUP($B40/5,0)*D10 -> 1144 | E40: 2424 | F40: 1416 | G40: 3248 | H40: 2256 | I40: 808 | J40: 613.6 | K40: 0 | L40: 1272 | M40: 1208 | N40: 2216 | O40: 1896 | P40: 429.6 | Q40: 3064 | R40: 2048 | S40: 2896 | T40: 1736 | U40: 1648 | V40: 440.8 | W40: 856 | X40: 443.2 | Y40: 1296 | Z40: 1168 | AA40: 2320 | AB40: 0
A41: Município - H | B41: 37 | C41: 73233.2 | D41: =ROUNDUP($B41/5,0)*D11 -> 1992 | E41: 3024 | F41: 554.4 | G41: 2160 | H41: 3104 | I41: 1264 | J41: 2032 | K41: 1272 | L41: 0 | M41: 2624 | N41: 1128 | O41: 2744 | P41: 1904 | Q41: 2456 | R41: 3008 | S41: 1800 | T41: 1656 | U41: 2496 | V41: 1464 | W41: 1088 | X41: 1504 | Y41: 2248 | Z41: 1296 | AA41: 512 | AB41: 0
A42: Município - I | B42: 12 | C42: 89352.5 | D42: =ROUNDUP($B42/5,0)*D12 -> 693 | E42: 906 | F42: 804 | G42: 1491 | H42: 633 | I42: 573 | J42: 225.9 | K42: 453 | L42: 984 | M42: 0 | N42: 1104 | O42: 753 | P42: 318 | Q42: 1143 | R42: 197.1 | S42: 1383 | T42: 912 | U42: 879 | V42: 438 | W42: 594 | X42: 429 | Y42: 495 | Z42: 708 | AA42: 1140 | AB42: 0
A43: Município - J | B43: 20 | C43: 54879.4 | D43: =ROUNDUP($B43/5,0)*D13 -> 556 | E43: 948 | F43: 448 | G43: 516 | H43: 1336 | I43: 788 | J43: 1176 | K43: 1108 | L43: 564 | M43: 1472 | N43: 0 | O43: 924 | P43: 1108 | Q43: 664 | R43: 1236 | S43: 336.8 | T43: 264.8 | U43: 796 | V43: 892 | W43: 704 | X43: 908 | Y43: 860 | Z43: 548 | AA43: 508 | AB43: 0
A44: Município - K | B44: 21 | C44: 56819.5 | D44: =ROUNDUP($B44/5,0)*D14 -> 487 | E44: 337 | F44: 1145 | G44: 1485 | H44: 229 | I44: 1055 | J44: 1250 | K44: 1185 | L44: 1715 | M44: 1255 | N44: 1155 | O44: 0 | P44: 1170 | Q44: 735 | R44: 940 | S44: 1130 | T44: 825 | U44: 160.5 | V44: 930 | W44: 945 | X44: 910 | Y44: 765 | Z44: 990 | AA44: 1645 | AB44: 0
A45: Município - L | B45: 10 | C45: 69685.6 | D45: =ROUNDUP($B45/5,0)*D15 -> 280 | E45: 600 | F45: 354 | G45: 812 | H45: 558 | I45: 200 | J45: 64 | K45: 107.4 | L45: 476 | M45: 212 | N45: 554 | O45: 468 | P45: 0 | Q45: 760 | R45: 308 | S45: 724 | T45: 428 | U45: 406 | V45: 110.2 | W45: 214 | X45: 104.2 | Y45: 318 | Z45: 292 | AA45: 580 | AB45: 0
A46: Município - M | B46: 242 | C46: 70658.1 | D46: =ROUNDUP($B46/5,0)*D16 -> 11907 | E46: 3885.7 | F46: 13622 | G46: 7791 | H46: 8624 | I46: 17787 | J46: 19404 | K46: 18767 | L46: 15043 | M46: 18669 | N46: 8134 | O46: 7203 | P46: 18620 | Q46: 0 | R46: 15582 | S46: 4326.7 | T46: 7252 | U46: 8722 | V46: 16268 | W46: 16758 | X46: 16072 | Y46: 14651 | Z46: 14847 | AA46: 14357 | AB46: 0
A47: Município - N | B47: 23 | C47: 79083.1 | D47: =ROUNDUP($B47/5,0)*D17 -> 770 | E47: 1195 | F47: 1310 | G47: 2345 | H47: 740 | I47: 1155 | J47: 705 | K47: 1280 | L47: 1880 | M47: 328.5 | N47: 1545 | O47: 940 | P47: 770 | Q47: 1590 | R47: 0 | S47: 1990 | T47: 1140 | U47: 945 | V47: 1030 | W47: 1075 | X47: 1010 | Y47: 555 | Z47: 1155 | AA47: 1810 | AB47: 0
A48: Município - O | B48: 58 | C48: 63634.1 | D48: =ROUNDUP($B48/5,0)*D18 -> 1872 | E48: 1908 | F48: 2352 | G48: 927.6 | H48: 3072 | I48: 3384 | J48: 4536 | K48: 4344 | L48: 2700 | M48: 5532 | N48: 1010.4 | O48: 2712 | P48: 4344 | Q48: 1059.6 | R48: 4776 | S48: 0 | T48: 1002 | U48: 3084 | V48: 3684 | W48: 3120 | X48: 3732 | Y48: 2592 | Z48: 2652 | AA48: 2532 | AB48: 0
A49: Município - P | B49: 171 | C49: 49450.6 | D49: =ROUNDUP($B49/5,0)*D19 -> 2562 | E49: 8085 | F49: 6230 | G49: 5390 | H49: 7350 | I49: 6685 | J49: 8050 | K49: 7595 | L49: 7245 | M49: 10640 | N49: 2317 | O49: 5775 | P49: 7490 | Q49: 5180 | R49: 7980 | S49: 2922.5 | T49: 0 | U49: 4690 | V49: 5810 | W49: 5915 | X49: 5670 | Y49: 4655 | Z49: 7105 | AA49: 6755 | AB49: 0
A50: Município - Q | B50: 143 | C50: 52406.9 | D50: =ROUNDUP($B50/5,0)*D20 -> 1916.9 | E50: 2856.5 | F50: 5742 | G50: 9512 | H50: 2230.1 | I50: 5220 | J50: 6351 | K50: 5974 | L50: 9048 | M50: 8497 | N50: 5771 | O50: 930.9 | P50: 5887 | Q50: 5162 | R50: 5481 | S50: 7453 | T50: 3886 | U50: 0 | V50: 4495 | W50: 4582 | X50: 4379 | Y50: 3538 | Z50: 4814 | AA50: 8642 | AB50: 0
A51: Município - R | B51: 40 | C51: 55270.4 | D51: =ROUNDUP($B51/5,0)*D21 -> 742.4 | E51: 2024 | F51: 976 | G51: 2808 | H51: 1848 | I51: 366.4 | J51: 569.6 | K51: 440.8 | L51: 1464 | M51: 1168 | N51: 1784 | O51: 1488 | P51: 440.8 | Q51: 2656 | R51: 1648 | S51: 2456 | T51: 1328 | U51: 1240 | V51: 0 | W51: 424 | X51: 36 | Y51: 888 | Z51: 732 | AA51: 1880 | AB51: 0
A52: Município - S | B52: 84 | C52: 51774.9 | D52: =ROUNDUP($B52/5,0)*D22 -> 1623.5 | E52: 4352 | F52: 1285.2 | G52: 5185 | H52: 3978 | I52: 404.6 | J52: 2091 | K52: 1819 | L52: 2312 | M52: 3366 | N52: 2992 | O52: 3213 | P52: 1819 | Q52: 5814 | R52: 3655 | S52: 4420 | T52: 2873 | U52: 2686 | V52: 901 | W52: 0 | X52: 967.3 | Y52: 2057 | Z52: 697 | AA52: 3179 | AB52: 0
A53: Município - T | B53: 9 | C53: 55155.5 | D53: =ROUNDUP($B53/5,0)*D23 -> 177.8 | E53: 498 | F53: 254 | G53: 712 | H53: 454 | I53: 100.6 | J53: 136.4 | K53: 110.8 | L53: 376 | M53: 286 | N53: 454 | O53: 364 | P53: 104.2 | Q53: 656 | R53: 404 | S53: 622 | T53: 324 | U53: 302 | V53: 9 | W53: 113.8 | X53: 0 | Y53: 214 | Z53: 191 | AA53: 478 | AB53: 0
A54: Município - U | B54: 81 | C54: 56229.1 | D54: =ROUNDUP($B54/5,0)*D24 -> 1018.3 | E54: 3740 | F54: 2856 | G54: 5848 | H54: 3366 | I54: 2312 | J54: 2975 | K54: 2754 | L54: 4777 | M54: 2805 | N54: 3655 | O54: 2601 | P54: 2703 | Q54: 5083 | R54: 1887 | S54: 3672 | T54: 2261 | U54: 2074 | V54: 1887 | W54: 2057 | X54: 1819 | Y54: 0 | Z54: 2312 | AA54: 4556 | AB54: 0
A55: Município - V | B55: 236 | C55: 55875.8 | D55: =ROUNDUP($B55/5,0)*D25 -> 4992 | E55: 12672 | F55: 1737.6 | G55: 12720 | H55: 11664 | I55: 31536 | J55: 7776 | K55: 7008 | L55: 7776 | M55: 11328 | N55: 6576 | O55: 9504 | P55: 7008 | Q55: 14544 | R55: 11088 | S55: 10608 | T55: 9744 | U55: 7968 | V55: 4392 | W55: 1968 | X55: 4584 | Y55: 6528 | Z55: 0 | AA55: 7152 | AB55: 0
A56: Município - X | B56: 59 | C56: 74208 | D56: =ROUNDUP($B56/5,0)*D26 -> 2832 | E56: 4368 | F56: 1488 | G56: 3072 | H56: 4488 | I56: 2520 | J56: 3672 | K56: 3480 | L56: 768 | M56: 4560 | N56: 1524 | O56: 3948 | P56: 3480 | Q56: 3516 | R56: 4344 | S56: 2532 | T56: 2316 | U56: 3576 | V56: 2820 | W56: 2244 | X56: 2868 | Y56: 3216 | Z56: 1788 | AA56: 0 | AB56: 0
A57: MUN_RESERVA | B57: 0 | C57: 0 | D57: =ROUNDUP($B57/5,0)*D27 -> 0 | E57: 0 | F57: 0 | G57: 0 | H57: 0 | I57: 0 | J57: 0 | K57: 0 | L57: 0 | M57: 0 | N57: 0 | O57: 0 | P57: 0 | Q57: 0 | R57: 0 | S57: 0 | T57: 0 | U57: 0 | V57: 0 | W57: 0 | X57: 0 | Y57: 0 | Z57: 0 | AA57: 0 | AB57: 0
A59: TOTAIS | B59: =SUM(B33:B58) -> 1590 | D59: =SUM(D33:D58) -> 43920.9 | E59: 67689.2 | F59: 52507.3 | G59: 83013.6 | H59: 69074.1 | I59: 85979.2 | J59: 74270.5 | K59: 70316 | L59: 73233.2 | M59: 89352.5 | N59: 54879.4 | O59: 56819.5 | P59: 69685.6 | Q59: 70658.1 | R59: 79083.1 | S59: 63634.1 | T59: 49450.6 | U59: 52406.9 | V59: 55270.4 | W59: 51774.9 | X59: 55155.5 | Y59: 56229.1 | Z59: 55875.8 | AA59: 74208 | AB59: 0

Sheet TRANSPORTE PÁTIO CASA
A3: DISTÂNCIA ESTIMADA DO TRANSPORTE DO PÁTIO DE TRANSBORDO ATÉ O LOCAL DE INSTALAÇÃO DA CISTERNA (CAPACIDADE DE CARGA 02 CISTERNAS / CAMINHÃO) | B3: QUANTIDADE CISTERNAS | C3: ÁREA TERRITORIAL (KM2) FONTE IBGE/2019 | D3: DISTÂNCIA MÉDIA DA SEDE DO MUNICÍPIO AO LOCAL DE INSTALAÇÃO (KM) - 70% D EQUIV | E3: DISTÂNCIA DO TRANSPORTE EM RODOVIA PAVIMENTADA (KM) ARBITRADO 25% | F3: DISTÂNCIA DO TRANSPORTE EM LEITO NATURAL (KM) ARBITRADO 75%
A4: ='MATRIZ TRANSPORTE FÁBRICA PÁTIO'!A3 -> Município - Centro de Distribuição | B4: ='MATRIZ TRANSPORTE FÁBRICA PÁTIO'!B3 -> 45 | C4: 4115.51 | D4: =ROUND(0.7*SQRT((C4*4)/PI()),2) -> 50.67 | E4: =ROUND(ROUNDUP(B4/2,0)*D4*0.25,2) -> 291.35 | F4: =ROUND(ROUNDUP(B4/2,0)*D4*0.75,2) -> 874.06
A5: ='MATRIZ TRANSPORTE FÁBRICA PÁTIO'!A4 -> Município - A | B5: ='MATRIZ TRANSPORTE FÁBRICA PÁTIO'!B4 -> 22 | C5: 627.612 | D5: =ROUND(0.7*SQRT((C5*4)/PI()),2) -> 19.79 | E5: =ROUND(ROUNDUP(B5/2,0)*D5*0.25,2) -> 54.42 | F5: =ROUND(ROUNDUP(B5/2,0)*D5*0.75,2) -> 163.27
A6: ='MATRIZ TRANSPORTE FÁBRICA PÁTIO'!A5 -> Município - B | B6: ='MATRIZ TRANSPORTE FÁBRICA PÁTIO'!B5 -> 66 | C6: 2247.208 | D6: 37.44 | E6: 308.88 | F6: 926.64
A7: ='MATRIZ TRANSPORTE FÁBRICA PÁTIO'!A6 -> Município - C | B7: ='MATRIZ TRANSPORTE FÁBRICA PÁTIO'!B6 -> 33 | C7: 2370.486 | D7: 38.46 | E7: 163.46 | F7: 490.37
A8: ='MATRIZ TRANSPORTE FÁBRICA PÁTIO'!A7 -> Município - D | B8: ='MATRIZ TRANSPORTE FÁBRICA PÁTIO'!B7 -> 47 | C8: 2651.536 | D8: 40.67 | E8: 244.02 | F8: 732.06
A9: ='MATRIZ TRANSPORTE FÁBRICA PÁTIO'!A8 -> Município - E | B9: ='MATRIZ TRANSPORTE FÁBRICA PÁTIO'!B8 -> 44 | C9: 460.388 | D9: 16.95 | E9: 93.23 | F9: 279.68
A10: ='MATRIZ TRANSPORTE FÁBRICA PÁTIO'!A9 -> Município - F | B10: ='MATRIZ TRANSPORTE FÁBRICA PÁTIO'!B9 -> 49 | C10: 2662.819 | D10: 40.76 | E10: 254.75 | F10: 764.25
A11: ='MATRIZ TRANSPORTE FÁBRICA PÁTIO'!A10 -> Município - G | B11: ='MATRIZ TRANSPORTE FÁBRICA PÁTIO'!B10 -> 38 | C11: 11504.31 | D11: 84.72 | E11: 402.42 | F11: 1207.26
A12: ='MATRIZ TRANSPORTE FÁBRICA PÁTIO'!A11 -> Município - H | B12: ='MATRIZ TRANSPORTE FÁBRICA PÁTIO'!B11 -> 37 | C12: 1052.837 | D12: 25.63 | E12: 121.74 | F12: 365.23
A13: ='MATRIZ TRANSPORTE FÁBRICA PÁTIO'!A12 -> Município - I | B13: ='MATRIZ TRANSPORTE FÁBRICA PÁTIO'!B12 -> 12 | C13: 1176.111 | D13: 27.09 | E13: 40.64 | F13: 121.91
A14: ='MATRIZ TRANSPORTE FÁBRICA PÁTIO'!A13 -> Município - J | B14: ='MATRIZ TRANSPORTE FÁBRICA PÁTIO'!B13 -> 20 | C14: 1740.113 | D14: 32.95 | E14: 82.38 | F14: 247.13
A15: ='MATRIZ TRANSPORTE FÁBRICA PÁTIO'!A14 -> Município - K | B15: ='MATRIZ TRANSPORTE FÁBRICA PÁTIO'!B14 -> 21 | C15: 836.586 | D15: 22.85 | E15: 62.84 | F15: 188.51
A16: ='MATRIZ TRANSPORTE FÁBRICA PÁTIO'!A15 -> Município - L | B16: ='MATRIZ TRANSPORTE FÁBRICA PÁTIO'!B15 -> 10 | C16: 9955.113 | D16: 78.81 | E16: 98.51 | F16: 295.54
A17: ='MATRIZ TRANSPORTE FÁBRICA PÁTIO'!A16 -> Município - M | B17: ='MATRIZ TRANSPORTE FÁBRICA PÁTIO'!B16 -> 242 | C17: 2459.102 | D17: 39.17 | E17: 1184.89 | F17: 3554.68
A18: ='MATRIZ TRANSPORTE FÁBRICA PÁTIO'!A17 -> Município - N | B18: ='MATRIZ TRANSPORTE FÁBRICA PÁTIO'!B17 -> 23 | C18: 1979.194 | D18: 35.14 | E18: 105.42 | F18: 316.26
A19: ='MATRIZ TRANSPORTE FÁBRICA PÁTIO'!A18 -> Município - O | B19: ='MATRIZ TRANSPORTE FÁBRICA PÁTIO'!B18 -> 58 | C19: 3313.418 | D19: 45.47 | E19: 329.66 | F19: 988.97
A20: ='MATRIZ TRANSPORTE FÁBRICA PÁTIO'!A19 -> Município - P | B20: ='MATRIZ TRANSPORTE FÁBRICA PÁTIO'!B19 -> 171 | C20: 2624.998 | D20: 40.47 | E20: 870.11 | F20: 2610.32
A21: ='MATRIZ TRANSPORTE FÁBRICA PÁTIO'!A20 -> Município - Q | B21: ='MATRIZ TRANSPORTE FÁBRICA PÁTIO'!B20 -> 143 | C21: 3183.911 | D21: 44.57 | E21: 802.26 | F21: 2406.78
A22: ='MATRIZ TRANSPORTE FÁBRICA PÁTIO'!A21 -> Município - R | B22: ='MATRIZ TRANSPORTE FÁBRICA PÁTIO'!B21 -> 40 | C22: 1984.91 | D22: 35.19 | E22: 175.95 | F22: 527.85
A23: ='MATRIZ TRANSPORTE FÁBRICA PÁTIO'!A22 -> Município - S | B23: ='MATRIZ TRANSPORTE FÁBRICA PÁTIO'!B22 -> 84 | C23: 1909.353 | D23: 34.51 | E23: 362.36 | F23: 1087.07
A24: ='MATRIZ TRANSPORTE FÁBRICA PÁTIO'!A23 -> Município - T | B24: ='MATRIZ TRANSPORTE FÁBRICA PÁTIO'!B23 -> 9 | C24: 1751.671 | D24: 33.06 | E24: 41.33 | F24: 123.98
A25: ='MATRIZ TRANSPORTE FÁBRICA PÁTIO'!A24 -> Município - U | B25: ='MATRIZ TRANSPORTE FÁBRICA PÁTIO'!B24 -> 81 | C25: 2340.684 | D25: 38.21 | E25: 391.65 | F25: 1174.96
A26: ='MATRIZ TRANSPORTE FÁBRICA PÁTIO'!A25 -> Município - V | B26: ='MATRIZ TRANSPORTE FÁBRICA PÁTIO'!B25 -> 236 | C26: 1592.245 | D26: 31.52 | E26: 929.84 | F26: 2789.52
A27: ='MATRIZ TRANSPORTE FÁBRICA PÁTIO'!A26 -> Município - X | B27: ='MATRIZ TRANSPORTE FÁBRICA PÁTIO'!B26 -> 59 | C27: 2920.579 | D27: 42.69 | E27: 320.18 | F27: 960.53
B29: =SUM(B4:B28) -> 1590 | C29: =SUM(C4:C28) -> 67460.694 | D29: =SUMPRODUCT(B4:B27,D4:D27)/B29 -> 38.61943396 | E29: =SUM(E4:E28) -> 7732.29 | F29: =SUM(F4:F28) -> 23196.83
B30: TOTAL | C30: TOTAL | D30: MÉDIA | E30: TOTAL | F30: TOTAL

Sheet MC TRANSPORTE
A1: MINISTÉRIO DO DESENVOLVIMENTO REGIONAL
A2: COMPANHIA DE DESENVOLVIMENTO DOS VALES DO SÃO FRANCISCO E DO PARNAÍBA
A3: PROGRAMA NACIONAL DE UNIVERSALIZAÇÃO DO ACESSO E USO DA ÁGUA - “ÁGUA PARA TODOS"
A6: TRANSPORTE E INSTALAÇÃO DE CISTERNAS PARA CAPTAÇÃO DA ÁGUA DA CHUVA - BAHIA 2ªSR
A8: MEMÓRIA DE CÁLCULO DOS TRANSPORTES
A10: 01 | B10: MOBILIZAÇÃO E DESMOBILIZAÇÃO
B12: Dist. Média (Km): | C12: =AVERAGE('MATRIZ TRANSPORTE FÁBRICA PÁTIO'!C3:C26) -> 198.1753472
B13: nº De municípios: | C13: =ROW('MATRIZ TRANSPORTE FÁBRICA PÁTIO'!A27)-ROW('MATRIZ TRANSPORTE FÁBRICA PÁTIO'!A3) -> 24 | D13: und
B14: V = Velocidade Rodovia pavimentada (Km/h) | C14: 60 | D14: DNIT
B15: F = Fator de Eficiência | C15: 0.83 | D15: DNIT
B16: C = Capacidade de mobilização/desmobilização | C16: 1
B17: P = Produção = ( C x E x V ) / 2 (unxkm/h) | C17: =C14*C15*C16/2 -> 24.9
B18: I = Indice da composição = 1/P x D x N (h) | C18: =1/C17*C12*C13 -> 191.0123829
A20: 02 | B20: TRANSPORTE FÁBRICA P/ MUNICÍPIO - VIA PAVIMENTADA
B22: Ponto ótimo para distribuição: | C22: Município - Centro de Distribuição
B24: Dist. Média (Km): | C24: =VLOOKUP(C22,'MATRIZ TRANSPORTE FÁBRICA PÁTIO'!A33:C57,3,FALSE) -> 43920.9
B25: nº De cisternas: | C25: ='MATRIZ TRANSPORTE FÁBRICA PÁTIO'!B29 -> 1590 | D25: und
B26: Dist. Média/Cisterna (Km): | C26: =ROUND(C24/C25,2) -> 27.62 | D26: Km
B28: V = Velocidade Rodovia pavimentada (Km/h) | C28: 60 | D28: DNIT
B29: F = Fator de Eficiência | C29: 0.83 | D29: DNIT
B30: C = Capacidade de Cisternas Transportada pelo caminhão | C30: 5
B31: P = Produção = ( C x E x V ) / 2 (unxkm/h) | C31: =C28*C29*C30/2 -> 124.5
B32: I = Indice da composição = 1/P (h/unxkm) | C32: =1/C31 -> 0.008032128514
A34: 03 | B34: TRANSPORTE MUNICÍPIO P/ LOCAL - VIA PAVIMENTADA
B36: Dist. Média (Km): | C36: ='TRANSPORTE PÁTIO CASA'!E29 -> 7732.29
B37: nº De cisternas: | C37: 3960 | D37: und
B38: Dist. Média/Cisterna (Km): | C38: =ROUND(C36/C37,2) -> 1.95 | D38: Km
B40: V = Velocidade Rodovia pavimentada (Km/h) | C40: 60 | D40: DNIT
B41: F = Fator de Eficiência | C41: 0.83 | D41: DNIT
B42: C = Capacidade de Cisternas Transportada pelo caminhão | C42: 2
B43: P = Produção = ( C x E x V ) / 2 (unxkm/h) | C43: =C40*C41*C42/2 -> 49.8
B44: I = Indice da composição = 1/P (h/unxkm) | C44: =1/C43 -> 0.02008032129
A46: 04 | B46: TRANSPORTE MUNICÍPIO P/ LOCAL - NÃO PAVIMENTADA
B48: Dist. Média (Km): | C48: ='TRANSPORTE PÁTIO CASA'!F29 -> 23196.83
B49: nº De cisternas: | C49: 3960 | D49: und
B50: Dist. Média/Cisterna (Km): | C50: =ROUND(C48/C49,2) -> 5.86 | D50: Km
B52: V = Velocidade Rodovia pavimentada (Km/h) | C52: 40 | D52: DNIT
B53: F = Fator de Eficiência | C53: 0.83 | D53: DNIT
B54: C = Capacidade de Cisternas Transportada pelo caminhão | C54: 2
B55: P = Produção = ( C x E x V ) / 2 (unxkm/h) | C55: =C52*C53*C54/2 -> 33.2
B56: I = Indice da composição = 1/P (h/unxkm) | C56: =1/C55 -> 0.03012048193
